Cogmind - Beta 13 @@@ ROGUE MODE // 2024.06.13 @ 21:52:17 Player: Vimes Result: Destroyed by P-60 Hacker with Shock Rifle Performance ------------- Evolutions (3) 1500 Regions Visited (5) 1000 Robots Destroyed (62) 310 Value Destroyed (1817) 1817 Prototype IDs (4) 80 Alien Tech Used (0) 0 Bonus (285) 285 TOTAL SCORE: 4992 Bonus ------- High Alert Combat Kills 240 Follower Combat Kills 52 Friendly Fire -7 Cogmind --------- Core Integrity 0/700 Matter 143/300 Energy 100/100 System Corruption 18% Temperature Cool (0) Movement Core (750) Ox14 Location -7/Factory Parts ------- > --- POWER (2) -------- (None) > --- PROPULSION (3) --- (None) > --- UTILITY (5) ------ High-capacity Storage Unit Advanced ECM Suite > --- WEAPON (3) ------- (None) > --- INVENTORY (20) --- VTOL Module VTOL Module Improved Signal Interpreter System Restoration Module Peak State ------------ > --- POWER ------------ Deuterium Engine Light Deuterium Engine > --- PROPULSION ------- Armored Treads Advanced Treads > --- UTILITY ---------- Small Storage Unit High-capacity Matter Pod Signal Interpreter Transport Network Coupler > --- WEAPON ----------- High-powered Shotgun Enhanced Autogun Improved Grenade Launcher > --- INVENTORY -------- Light Treads Advanced Treads Improved Signal Interpreter Minigun [Rating: 27] Favorites ----------- Power Deuterium Engine Engine Deuterium Engine Power Core Light Nuclear Core Propulsion Wheel Treads Advanced Treads Wheel Wheel Utility Transport Network Coupler Device Advanced ECM Suite Storage Small Storage Unit Processor Transport Network Coupler Weapon Assault Rifle Energy Gun Improved EM Shotgun Ballistic Gun Assault Rifle Ballistic Cannon Mini Assault Cannon Launcher Grenade Launcher Special Weapon Mining Laser Build | -11 -10 -9 -9 -8 -7 ------- Run | Yrd Mat Mat Min Mat Fac Slots Evolved 6 | . . 2 . 2 2 Power 1 | . . 1 . . . Propulsion 1 | . . . . . 1 Utility 3 | . . 1 . 1 1 Weapon 1 | . . . . 1 . Parts Attached 53 | 7 4 6 4 25 7 Power 9 | 1 . 3 . 4 1 Engine 8 | 1 . 3 . 4 . Core 1 | . . . . . 1 Reactor . | . . . . . . Propulsion 10 | 2 . . 2 4 2 Treads 6 | . . . . 4 2 Leg . | . . . . . . Wheel 4 | 2 . . 2 . . Hover . | . . . . . . Flight . | . . . . . . Utility 9 | 1 3 2 . 1 2 Device 1 | . . . . . 1 Storage 6 | 1 2 1 . 1 1 Processor 2 | . 1 1 . . . Hackware . | . . . . . . Protection . | . . . . . . Artifact . | . . . . . . Weapon 25 | 3 1 1 2 16 2 Energy Gun 3 | 2 . . . 1 . Energy Cannon . | . . . . . . Ballistic Gun 10 | 1 . . . 8 1 Ballistic Cannon 1 | . . . . . 1 Launcher 10 | . 1 1 1 7 . Special Weapon 1 | . . . 1 . . Impact Weapon . | . . . . . . Slashing Weapon . | . . . . . . Piercing Weapon . | . . . . . . Special Melee Weapon . | . . . . . . Unidentified Prototypes 4 | . . . . 3 1 Corrupted Parts 1 | . . . . 1 . System Corruption 2 | . . . . 2 . Parts Lost 29 | . . . 3 17 9 Power 7 | . . . . 6 1 Propulsion 8 | . . . 2 2 4 Utility 3 | . . . . 1 2 Weapon 11 | . . . 1 8 2 Highest Loss Streak 6 | . . . 1 6 3 To Critical Strikes . | . . . . . . Average Slot Usage (%) 86 | . 98 100 98 92 46 Engine 13 | . 14 22 22 15 . Treads 8 | . . . . 13 14 Wheel 10 | . 28 22 20 3 . Device 1 | . . . . . 5 Storage 16 | . 21 22 11 17 7 Processor 14 | . 4 11 22 18 12 Energy Gun 2 | . 8 . . 2 . Ballistic Gun 8 | . 14 11 1 11 . Launcher 7 | . 5 11 10 8 . Special Weapon 1 | . . . 9 1 . Naked Turns . | . . . . . . Heaviest Build 55 | 14 17 32 28 43 55 Greatest Support 44 | 20 20 20 26 44 42 Greatest Overweight (x) 17 | . . 1 2 2 17 Average Overweight (x) . | . . 1 1 . 1 Largest Inventory Capacity 20 | 8 8 8 8 8 20 Average Capacity 10 | 6 8 8 8 8 19 Most Carried 8 | 4 8 8 8 8 4 Average Carried 5 | 2 7 7 7 5 2 Final Capacity 20 | 8 8 8 8 8 20 Final Carried 8 | 4 8 8 7 3 4 Class Distribution -------------------- 64% | Mutant 34% | Skirmisher Dominant Class ---------------- Mutant | -10/Materials Mutant | -9/Materials Mutant | -9/Mines Skirmisher | -8/Materials Mutant | -7/Factory Resources | -11 -10 -9 -9 -8 -7 ----------- Run | Yrd Mat Mat Min Mat Fac Matter Collected 1369 | 203 187 155 133 641 50 Remotely . | . . . . . . Salvage Created 1573 | . 144 193 88 1098 50 Parts 93 | . 10 13 12 54 4 Haulers Intercepted 1 | . 1 . . . . Recyclers Shooed 2 | . . 1 . 1 . Parts Field Recycled . | . . . . . . Retrieved Matter . | . . . . . . Parts Self-Destructed . | . . . . . . Prevented . | . . . . . . Kills | -11 -10 -9 -9 -8 -7 ------- Run | Yrd Mat Mat Min Mat Fac Combat Hostiles Destroyed 45 | . 6 7 6 23 3 Melee 1 | . . . . . 1 Guns 19 | . 4 2 1 10 2 AOE 25 | . 2 5 5 13 . Classes Destroyed 12 | . 2 5 1 4 . Worker 4 | . . 1 1 2 . Builder 4 | . . . 1 3 . Hauler 1 | . 1 . . . . Recycler 1 | . . . . 1 . Mechanic 2 | . . . . 2 . Operator 1 | . . 1 . . . Watcher 4 | . . 1 . 3 . Swarmer 16 | . 6 . 4 3 3 Grunt 20 | . . 6 2 12 . Brawler 2 | . . 1 . 1 . Duelist 2 | . . . . 2 . Sentry 5 | . . . . 5 . Best Kill Streak 6 | . 4 4 5 6 2 Combat Bots Only 5 | . 3 3 4 5 2 Max Kills in Single Turn 3 | . 2 2 3 3 1 Gunslinging . | . . . . . . Exploded 3 | . 1 2 3 2 . Melee 1 | . . . . . 1 Uniques/NPCs Destroyed . | . . . . . . Combat | -11 -10 -9 -9 -8 -7 -------- Run | Yrd Mat Mat Min Mat Fac Hostile Shots Fired 343 | . 26 14 19 142 142 Missed 87 | . 5 5 5 45 27 Damage Taken 4206 | . 167 152 275 1888 1724 Core 988 | . 48 11 59 164 706 Absorbed by Shields . | . . . . . . Regen/Repaired (Parts) 38 | . . . . 38 . Core Remaining (%) 83 | 100 80 . 82 70 . Volleys Fired 103 | . 11 11 13 55 13 Largest 3 | . 2 2 2 3 1 Hottest 130 | . 70 50 130 105 23 Shots Fired 184 | . 22 22 19 108 13 Gun 124 | . 20 11 5 75 13 Cannon . | . . . . . . Launcher 56 | . 2 11 10 33 . Special 4 | . . . 4 . . Kinetic 84 | . 11 11 5 44 13 Thermal 13 | . 9 . 4 . . Explosive 50 | . 2 11 10 27 . Electromagnetic 37 | . . . . 37 . Robot Hit Streak 9 | . 4 4 5 9 2 Robot Miss Streak 4 | . 3 3 3 4 2 Penetration Max . | . . . . . . Secondary Targets . | . . . . . . Shots Hit Robots 105 | . 10 13 7 69 6 Core Hits 119 | . 8 17 14 77 3 Critical Kills . | . . . . . . Critical Parts Destroyed . | . . . . . . Critical Strikes 1 | . 1 . . . . Burn 1 | . 1 . . . . Melee Attacks . | . . . . . . Impact . | . . . . . . Slashing . | . . . . . . Piercing . | . . . . . . Sneak Attacks . | . . . . . . Combat Hostiles . | . . . . . . Follow-up Attacks . | . . . . . . Damage Inflicted 4623 | . 293 756 504 2959 111 Guns 1152 | . 152 59 39 802 100 Cannons . | . . . . . . Explosions 3460 | . 141 697 465 2157 . Melee . | . . . . . . Ramming 11 | . . . . . 11 Kinetic 663 | . 64 59 39 401 100 Thermal 273 | . 88 . . 185 . Explosive 2855 | . 141 697 465 1552 . Electromagnetic 821 | . . . . 821 . Impact . | . . . . . . Slashing . | . . . . . . Piercing . | . . . . . . Highest Corruption 17 | . . . . 3 17 Average Corruption 4 | . . . . 2 6 Corruption Purged . | . . . . . . Corruption Blocked . | . . . . . . Effects 16 | . . . . 7 9 Message Errors 4 | . . . . 1 3 Matter Fused 5 | . . . . 2 3 Heat Flow Errors 1 | . . . . . 1 Energy Discharges 1 | . . . . 1 . Data Loss (minor) 3 | . . . . 2 1 Data Loss (major) 2 | . . . . 1 1 Overload Shots . | . . . . . . Overflow Damage 46 | . 23 . 23 . . Projectiles . | . . . . . . Explosions 46 | . 23 . 23 . . Melee . | . . . . . . Knockbacks . | . . . . . . Impact . | . . . . . . Kinetic . | . . . . . . Secondary . | . . . . . . Self-Inflicted Damage 317 | . . 30 117 170 . Shots 12 | . . 1 4 7 . Rammed 3 | . . . . . 3 Targets Rammed 4 | . . . . . 4 Kicked . | . . . . . . Crushed 1 | . . . . . 1 Highest Temperature 160 | . 61 51 86 160 125 Average Temperature 36 | . 29 21 32 41 75 Received Heat Transfer 831 | . . 69 78 684 . Siege Activations . | . . . . . . Robots Corrupted . | . . . . . . Combat Hostiles . | . . . . . . Parts Fried 5 | . . . . 5 . Impact Corruptions . | . . . . . . Robots Melted . | . . . . . . Combat Hostiles . | . . . . . . Parts Melted . | . . . . . . Heat Transferred 583 | . 333 . . 250 . Parts Sabotaged . | . . . . . . Parts Stolen . | . . . . . . Parts Stripped . | . . . . . . Power Chain Reactions 4 | . . . . 4 . Alert | -11 -10 -9 -9 -8 -7 ------- Run | Yrd Mat Mat Min Mat Fac Peak Influence 944 | . 186 264 400 944 344 Initial 303 | . . . 102 156 303 Average 342 | . 56 79 228 554 273 Maximum Alert Level 3 | . . 1 2 3 1 Low Security (%) 35 | 100 100 86 42 8 16 Level 1 35 | . . 13 50 29 83 Level 2 7 | . . . 7 13 . Level 3 21 | . . . . 48 . Level 4 . | . . . . . . Level 5 . | . . . . . . High Security . | . . . . . . Max Security . | . . . . . . Squads Dispatched 9 | . . 1 . 7 1 Investigation 1 | . . . . 1 . Extermination 1 | . . . . . 1 Reinforcement 4 | . . 1 . 3 . Assault 1 | . . . . 1 . Garrison 2 | . . . . 2 . Intercept . | . . . . . . Searches Triggered . | . . . . . . Construction Impeded . | . . . . . . Haulers Reinforced . | . . . . . . Active Scanning Responses . | . . . . . . Cargo Convoy Interrupts . | . . . . . . Stealth | -11 -10 -9 -9 -8 -7 --------- Run | Yrd Mat Mat Min Mat Fac Distress Signals 3 | . . 1 . 2 . Communications Jammed . | . . . . . . Distress Signals . | . . . . . . Times Spotted 63 | . 8 10 9 32 4 Peak Tracking Total 5 | . 3 3 4 5 4 Tactical Retreats 2 | . . . 1 1 . Traps | -11 -10 -9 -9 -8 -7 ------- Run | Yrd Mat Mat Min Mat Fac Traps Triggered 1 | . . . . 1 . Indirectly 1 | . . . . 1 . Trap Hack Attempts . | . . . . . . Triggered . | . . . . . . Disarmed . | . . . . . . Reprogrammed . | . . . . . . Reused . | . . . . . . Traps Extracted . | . . . . . . Installed . | . . . . . . Triggered . | . . . . . . Machines | -11 -10 -9 -9 -8 -7 ---------- Run | Yrd Mat Mat Min Mat Fac Machines Disabled 9 | . . 1 2 6 . Max in Single Turn 1 | . . 1 1 1 . Garrison Access 1 | . . . . 1 . Machines Repaired . | . . . . . . Machines Dismantled . | . . . . . . Machines Sabotaged . | . . . . . . Overloaded Fab Kills . | . . . . . . Hacking | -11 -10 -9 -9 -8 -7 --------- Run | Yrd Mat Mat Min Mat Fac Machines Accessed 3 | . 2 . . 1 . Terminals 1 | . 1 . . . . Fabricators . | . . . . . . Repair Stations 1 | . . . . 1 . Recycling Units 1 | . 1 . . . . Scanalyzers . | . . . . . . Garrison Access . | . . . . . . Total Hacks 5 | . 3 . . 2 . Successful 5 | . 3 . . 2 . Failed . | . . . . . . Catastrophic . | . . . . . . Database Lockouts . | . . . . . . Manual . | . . . . . . Terminals 1 | . 1 . . . . Fabricators . | . . . . . . Repair Stations 2 | . . . . 2 . Recycling Units 2 | . 2 . . . . Scanalyzers . | . . . . . . Garrison Access . | . . . . . . Terminal Hacks 1 | . 1 . . . . Record 1 | . 1 . . . . Fabricator Hacks . | . . . . . . Repair Station Hacks 2 | . . . . 2 . Scan Component 1 | . . . . 1 . Repair 1 | . . . . 1 . Recycling Unit Hacks 2 | . 2 . . . . Report Inventory 1 | . 1 . . . . Retrieve Components 1 | . 1 . . . . Scanalyzer . | . . . . . . Garrison Access Hacks . | . . . . . . Unauthorized Hacks . | . . . . . . Terminals . | . . . . . . Fabricators . | . . . . . . Repair Stations . | . . . . . . Recycling Units . | . . . . . . Scanalyzers . | . . . . . . Garrison Access . | . . . . . . Data Cores Recovered . | . . . . . . Used . | . . . . . . Hacking Detections 1 | . . . . 1 . Full Trace Events . | . . . . . . Feedback Events . | . . . . . . Feedback Blocked . | . . . . . . Robot Schematics Acquired . | . . . . . . Robots Built . | . . . . . . Authchips . | . . . . . . Time . | . . . . . . Total Robot Build Rating . | . . . . . . Part Schematics Acquired . | . . . . . . Parts Built . | . . . . . . Authchips . | . . . . . . Time . | . . . . . . Total Part Build Rating . | . . . . . . Parts Repaired 1 | . . . . 1 . Time 26 | . . . . 26 . Parts Recycled . | . . . . . . Recycled Matter . | . . . . . . Retrieved Matter . | . . . . . . Retrieved Components 2 | . 2 . . . . Parts Scanalyzed . | . . . . . . Part Schematics Acquired . | . . . . . . Parts Damaged . | . . . . . . Bothacking | -11 -10 -9 -9 -8 -7 ------------ Run | Yrd Mat Mat Min Mat Fac Used RIF Installer . | . . . . . . Robots Hacked . | . . . . . . Non-combat . | . . . . . . Combat . | . . . . . . Robot Hacks Applied . | . . . . . . Relay Couplers Released 2 | . . . . 2 . Machine Destruction 2 | . . . . 2 . Fabnet Peak Effective % . | . . . . . . Robots Rewired . | . . . . . . Allies Hacked . | . . . . . . Hacks Repelled . | . . . . . . Allies | -11 -10 -9 -9 -8 -7 -------- Run | Yrd Mat Mat Min Mat Fac Total Allies 1 | . . . 1 . . Largest Group 1 | . . . 1 1 . Highest-Rated Group 31 | . . . 31 31 . Highest-Rated Ally 31 | . . . 31 31 . Total Orders . | . . . . . . Ally Attacks 6 | . . . 6 . . Total Damage 105 | . . . 105 . . Kills 2 | . . . 2 . . Allies Corrupted . | . . . . . . Allies Melted . | . . . . . . Intel | -11 -10 -9 -9 -8 -7 ------- Run | Yrd Mat Mat Min Mat Fac Robot Analysis Total . | . . . . . . Derelict Logs Recovered 1 | . . . 1 . . Drone Launches . | . . . . . . Drone Recoveries . | . . . . . . Exploration | -11 -10 -9 -9 -8 -7 ------------- Run | Yrd Mat Mat Min Mat Fac Turns Passed 2655 | 56 400 217 294 1210 478 Spaces Moved 1322 | 51 295 139 212 473 152 Core 29 | 4 . . . . 25 Treads 434 | . . . . 307 127 Legs . | . . . . . . Wheels 859 | 47 295 139 212 166 . Hover . | . . . . . . Flight . | . . . . . . Fastest Speed 50 | 50 80 95 90 90 100 Average Speed 128 | 77 80 95 105 148 240 Slowest Speed 900 | 80 80 95 115 250 900 Overloaded Moves . | . . . . . . Propulsion Burnouts . | . . . . . . Robots Hopped . | . . . . . . Cave-ins Triggered . | . . . . . . Exploration Rate (%) 29 | 4 51 13 53 48 5 Regions Visited 5 Branch Regions 1 Pre-discovered Areas 1 | . . . 1 . . Known Exits Taken 3 | . . 1 1 1 . Unknown Exits Taken 2 | 1 1 . . . . Scrap Searched . | . . . . . . Spaces Dug 27 | . . . 14 13 . Terrain Destroyed 287 | . 7 55 66 159 . Melee . | . . . . . . Projectile 4 | . . . 4 . . AOE 283 | . 7 55 62 159 . Terrain Rammed . | . . . . . . Walls Destroyed . | . . . . . . Machines Disabled . | . . . . . . Actions | -11 -10 -9 -9 -8 -7 --------- Run | Yrd Mat Mat Min Mat Fac Total 2088 | 66 438 202 255 879 248 Wait 548 | . 115 35 25 307 66 Move 1317 | 50 294 138 211 472 152 Hop . | . . . . . . Pick Up 44 | 9 8 7 2 13 5 Fast Attach 11 | 1 3 . . 4 3 Attach 30 | 5 1 3 3 14 4 Detach . | . . . . . . Swap 12 | 1 . 3 1 7 . Drop 19 | . 6 5 . 7 1 Fire 103 | . 11 11 13 55 13 Melee . | . . . . . . Ram . | . . . . . . Kick . | . . . . . . Crush 4 | . . . . . 4 Escape Stasis . | . . . . . . Rewire . | . . . . . . Trap . | . . . . . . Miscellaneous . | . . . . . . Route ------- -11/Scrapyard -10/Materials -9/Materials -9/Mines -8/Materials -7/Factory History --------- Turn | Location | Event 7 | -11/Scrapyard | Discovered new exit (range 16) 57 | -11/Scrapyard | Entered Materials 331 | -10/Materials | Build established: Mutant 445 | -10/Materials | Discovered new exit (range 8) 457 | -10/Materials | Entered another Materials area 457 | -9/Materials | Evolved 2 slots: Power x1, Utility x1 656 | -9/Materials | Discovered new exit (range 14) 673 | -9/Materials | Identified exit to Mines 674 | -9/Materials | Entered Mines 717 | -9/Mines | Received a Mining Laser from a helpful Derelict 944 | -9/Mines | Discovered new exit (range 13) 967 | -9/Mines | Identified exit to Materials 968 | -9/Mines | Entered Materials 968 | -8/Materials | Accompanied by 1 ally 968 | -8/Materials | Evolved 2 slots: Utility x1, Weapon x1 1018 | -8/Materials | Repaired Grenade Launcher 1209 | -8/Materials | Lost 3 parts (1n2w) 1479 | -8/Materials | Garrison activated, responded to threat 1722 | -8/Materials | Lost 4 parts (1p1n2w) 2088 | -8/Materials | Build established: Skirmisher 2165 | -8/Materials | Discovered new exit (range 9) 2177 | -8/Materials | Identified exit to Factory 2178 | -8/Materials | Entered Factory 2178 | -7/Factory | Evolved 2 slots: Propulsion x1, Utility x1 2209 | -7/Factory | Lost 6 parts (2p1u3w) 2476 | -7/Factory | Build established: Mutant 2500 | -7/Factory | Lost 3 parts (3n) 2568 | -7/Factory | Lost 3 parts (1p1n1w) 2578 | -7/Factory | System corruption reached 10% 2599 | -7/Factory | Core integrity fell below 50% 2642 | -7/Factory | Core integrity fell below 20% 2656 | -7/Factory | Destroyed by P-60 Hacker with Shock Rifle Last Messages --------------- 02472_ S-27 Virus destroyed. 02479_ System corrupted: Matter fused (-9). 02479_ Acquired 30 matter. 02488_ Acquired Lgt. Nuclear Core. 02491_ Acquired 20 matter. 02499_ Acquired VTOL Module. 02503_ /FHR2 2VYN PO3CHUE%QSF&Z4YS=YAFZPFA 02507_ Acquired VTOL Module. 02519_ Autogun destroyed. 02519_ Arm. Treads destroyed. 02531_ PJQIP6|N8 HJDUEX5%MCHDV SFW 02537_ Lgt. Nuclear Core destroyed. 02567_ System corrupted: Component data lost. 02571_ Transport Network Coupler destroyed. 02577_ Signal Interpreter destroyed. 02606_ System corrupted: Substantial component data lost. 02632_ System corrupted: Matter fused (-10). 02635_ Faulty Mni. Assault Cannon destroyed. 02650_ S9/WWE